[Event "Early-Titled-Tuesday-Blitz-October-03-2023"]
[Site "Chess.com"]
[Date "2023.10.03"]
[Round "1"]
[White "BeautiFullMindChess"]
[Black "Frolyanov_D"]
[Result "0-1"]
[WhiteElo "2367"]
[BlackElo "2673"]
[TimeControl "180+1"]
[EndTime "8:06:32 PDT"]
[Termination "Frolyanov_D won by resignation"]

1. e4 {[%clk 0:02:43.8]} 1... e5 {[%clk 0:02:59.5]} 2. Nf3 {[%clk 0:02:42.1]}
2... Nf6 {[%clk 0:02:58.4]} 3. Nxe5 {[%clk 0:02:39.1]} 3... d6 {[%clk
0:02:58.3]} 4. Nf3 {[%clk 0:02:39]} 4... Nxe4 {[%clk 0:02:58.2]} 5. d4 {[%clk
0:02:39.9]} 5... d5 {[%clk 0:02:58.1]} 6. Bd3 {[%clk 0:02:40.7]} 6... Bd6 {[%clk
0:02:58]} 7. O-O {[%clk 0:02:41.6]} 7... O-O {[%clk 0:02:57.9]} 8. Nbd2 {[%clk
0:02:39.6]} 8... Bf5 {[%clk 0:02:52.8]} 9. Re1 {[%clk 0:02:38.8]} 9... Re8
{[%clk 0:02:51.6]} 10. Nf1 {[%clk 0:02:38.6]} 10... Nd7 {[%clk 0:02:41.7]} 11.
Ng3 {[%clk 0:02:38.5]} 11... Bg6 {[%clk 0:02:35.2]} 12. c3 {[%clk 0:02:32.2]}
12... c6 {[%clk 0:02:32.6]} 13. Be3 {[%clk 0:02:17.3]} 13... Qc7 {[%clk
0:02:27.6]} 14. Bf1 {[%clk 0:02:15.7]} 14... f5 {[%clk 0:02:26.4]} 15. Bc1
{[%clk 0:01:57.2]} 15... Ndf6 {[%clk 0:02:08.1]} 16. Nh4 {[%clk 0:01:56.5]}
16... Ng4 {[%clk 0:02:04.2]} 17. Re2 {[%clk 0:01:27.8]} 17... Nexf2 {[%clk
0:01:56.4]} 18. Rxf2 {[%clk 0:01:27.1]} 18... Bxg3 {[%clk 0:01:56.3]} 19. hxg3
{[%clk 0:01:23.3]} 19... Qxg3 {[%clk 0:01:57.2]} 20. Qxg4 {[%clk 0:00:32.9]}
20... Qxg4 {[%clk 0:01:54]} 21. Nf3 {[%clk 0:00:29.6]} 21... Re4 {[%clk
0:01:09.1]} 22. Bd2 {[%clk 0:00:29.2]} 22... Rae8 {[%clk 0:01:06.1]} 23. Bd3
{[%clk 0:00:29]} 23... f4 {[%clk 0:00:53.7]} 24. Ne5 {[%clk 0:00:28.5]} 24...
R4xe5 {[%clk 0:00:51.5]} 25. Bxg6 {[%clk 0:00:19.8]} 25... hxg6 {[%clk
0:00:45.8]} 26. dxe5 {[%clk 0:00:19.6]} 26... g5 {[%clk 0:00:45.9]} 27. Re1
{[%clk 0:00:17.6]} 27... Qf5 {[%clk 0:00:45.9]} 28. Rfe2 {[%clk 0:00:17.1]}
28... g4 {[%clk 0:00:45.9]} 29. Rf1 {[%clk 0:00:14.8]} 29... f3 {[%clk
0:00:45.3]} 30. gxf3 {[%clk 0:00:14.7]} 30... gxf3 {[%clk 0:00:46.2]} 31. Ref2
{[%clk 0:00:11.5]} 31... Qg4+ {[%clk 0:00:45.4]} 32. Kh2 {[%clk 0:00:12]} 32...
Rxe5 {[%clk 0:00:45.1]} 33. Rxf3 {[%clk 0:00:12.3]} 33... Rh5+ {[%clk
0:00:45.1]} 0-1

[Event "Early-Titled-Tuesday-Blitz-October-03-2023"]
[Site "Chess.com"]
[Date "2023.10.03"]
[Round "1"]
[White "Kaua18"]
[Black "sofaceindisguise"]
[Result "0-1"]
[WhiteElo "2440"]
[BlackElo "2776"]
[TimeControl "180+1"]
[EndTime "8:06:33 PDT"]
[Termination "sofaceindisguise won on time"]

1. e4 {[%clk 0:03:00.2]} 1... c5 {[%clk 0:02:57.9]} 2. Nf3 {[%clk 0:03:00]} 2...
e6 {[%clk 0:02:58.3]} 3. g3 {[%clk 0:02:59.8]} 3... Nc6 {[%clk 0:02:57.5]} 4.
Bg2 {[%clk 0:02:59.2]} 4... Nf6 {[%clk 0:02:58.2]} 5. Qe2 {[%clk 0:02:59.6]}
5... d5 {[%clk 0:02:56.5]} 6. exd5 {[%clk 0:02:57.3]} 6... Nxd5 {[%clk
0:02:56.3]} 7. O-O {[%clk 0:02:57.2]} 7... Be7 {[%clk 0:02:54.1]} 8. Rd1 {[%clk
0:02:57.7]} 8... Nd4 {[%clk 0:02:52.9]} 9. Nxd4 {[%clk 0:02:52.4]} 9... cxd4
{[%clk 0:02:53.8]} 10. c4 {[%clk 0:02:26.5]} 10... Nf6 {[%clk 0:02:46.4]} 11. d3
{[%clk 0:02:26.1]} 11... O-O {[%clk 0:02:46.4]} 12. Nd2 {[%clk 0:02:24.8]} 12...
a5 {[%clk 0:02:44.6]} 13. Ne4 {[%clk 0:02:22.1]} 13... Nd7 {[%clk 0:02:44.7]}
14. Bf4 {[%clk 0:02:21.4]} 14... e5 {[%clk 0:02:43.6]} 15. Bd2 {[%clk
0:02:20.5]} 15... f5 {[%clk 0:02:38.4]} 16. f4 {[%clk 0:01:45]} 16... fxe4
{[%clk 0:02:36.8]} 17. Bxe4 {[%clk 0:01:45.2]} 17... exf4 {[%clk 0:02:32.5]} 18.
Bxf4 {[%clk 0:01:46.1]} 18... Bg5 {[%clk 0:02:24.5]} 19. Qh5 {[%clk 0:01:32.7]}
19... h6 {[%clk 0:02:22.6]} 20. Qg6 {[%clk 0:01:26.8]} 20... Nf6 {[%clk
0:02:22.4]} 21. Bxg5 {[%clk 0:01:19.6]} 21... hxg5 {[%clk 0:02:16.1]} 22. Bg2
{[%clk 0:01:07.6]} 22... a4 {[%clk 0:02:00.7]} 23. Qxg5 {[%clk 0:00:57.4]} 23...
Ra5 {[%clk 0:02:00.4]} 24. Qd2 {[%clk 0:00:51]} 24... Ng4 {[%clk 0:02:00.6]} 25.
Rf1 {[%clk 0:00:50.7]} 25... Rxf1+ {[%clk 0:01:52.8]} 26. Rxf1 {[%clk
0:00:38.5]} 26... Ne3 {[%clk 0:01:52.9]} 27. Rf4 {[%clk 0:00:38]} 27... Rf5
{[%clk 0:01:42.4]} 28. Rxf5 {[%clk 0:00:34.2]} 28... Bxf5 {[%clk 0:01:42.4]} 29.
Bxb7 {[%clk 0:00:34.2]} 29... Qb6 {[%clk 0:01:31.3]} 30. Bf3 {[%clk 0:00:24.7]}
30... Qg6 {[%clk 0:01:29.9]} 31. Qa5 {[%clk 0:00:20.7]} 31... Bxd3 {[%clk
0:01:26]} 32. Qa8+ {[%clk 0:00:18.1]} 32... Kh7 {[%clk 0:01:25.6]} 33. Qxa4
{[%clk 0:00:17.9]} 33... Be4 {[%clk 0:01:22.4]} 34. Be2 {[%clk 0:00:15]} 34...
d3 {[%clk 0:01:19]} 35. Bd1 {[%clk 0:00:14.2]} 35... Qf6 {[%clk 0:01:02.4]} 0-1

[Event "Early-Titled-Tuesday-Blitz-October-03-2023"]
[Site "Chess.com"]
[Date "2023.10.03"]
[Round "1"]
[White "NMJeevanK"]
[Black "Yushko_Olga"]
[Result "1-0"]
[WhiteElo "2533"]
[BlackElo "2072"]
[TimeControl "180+1"]
[EndTime "8:06:37 PDT"]
[Termination "NMJeevanK won by checkmate"]

1. g3 {[%clk 0:02:58.9]} 1... e6 {[%clk 0:03:00]} 2. Bg2 {[%clk 0:02:55.4]} 2...
f5 {[%clk 0:03:00.9]} 3. d4 {[%clk 0:02:51.1]} 3... Nf6 {[%clk 0:03:00.8]} 4. c4
{[%clk 0:02:51.2]} 4... Be7 {[%clk 0:03:01.4]} 5. Nc3 {[%clk 0:02:51.6]} 5... d6
{[%clk 0:03:01]} 6. Nf3 {[%clk 0:02:51.9]} 6... O-O {[%clk 0:03:01.9]} 7. O-O
{[%clk 0:02:52.5]} 7... Qe8 {[%clk 0:03:00.6]} 8. Re1 {[%clk 0:02:45.4]} 8...
Ne4 {[%clk 0:03:00.2]} 9. Qc2 {[%clk 0:02:38.7]} 9... Qg6 {[%clk 0:03:00.3]} 10.
Nxe4 {[%clk 0:02:31.9]} 10... fxe4 {[%clk 0:03:00.4]} 11. Nh4 {[%clk 0:02:08]}
11... Bxh4 {[%clk 0:03:00]} 12. gxh4 {[%clk 0:01:55.7]} 12... d5 {[%clk
0:02:59.3]} 13. Be3 {[%clk 0:01:40.1]} 13... c6 {[%clk 0:02:52.6]} 14. Kh1
{[%clk 0:01:34.5]} 14... Nd7 {[%clk 0:02:41.6]} 15. Rg1 {[%clk 0:01:29.5]} 15...
Qh5 {[%clk 0:02:37.2]} 16. f3 {[%clk 0:01:22.5]} 16... exf3 {[%clk 0:02:32.5]}
17. Bxf3 {[%clk 0:01:17.4]} 17... Qxh4 {[%clk 0:02:32.5]} 18. Rg3 {[%clk
0:01:11]} 18... Rf7 {[%clk 0:02:20.6]} 19. Bg5 {[%clk 0:01:04.7]} 19... Qxd4
{[%clk 0:02:12.9]} 20. cxd5 {[%clk 0:00:50.1]} 20... exd5 {[%clk 0:02:12.2]} 21.
Rag1 {[%clk 0:00:42.7]} 21... Ne5 {[%clk 0:01:53]} 22. Bf6 {[%clk 0:00:32.3]}
22... Rxf6 {[%clk 0:01:33.9]} 23. Rxg7+ {[%clk 0:00:30.2]} 23... Kf8 {[%clk
0:01:34.4]} 24. Qxh7 {[%clk 0:00:23.1]} 24... Rf7 {[%clk 0:01:31]} 25. Qh8+
{[%clk 0:00:16]} 25... Ke7 {[%clk 0:01:30.2]} 26. Rxf7+ {[%clk 0:00:16.2]} 26...
Kxf7 {[%clk 0:01:30.5]} 27. Rg7+ {[%clk 0:00:12]} 27... Ke6 {[%clk 0:01:24.1]}
28. Qe8+ {[%clk 0:00:06.7]} 28... Kf6 {[%clk 0:01:09.3]} 29. Qe7+ {[%clk
0:00:05.9]} 29... Kf5 {[%clk 0:01:05.6]} 30. Qg5+ {[%clk 0:00:04.5]} 30... Ke6
{[%clk 0:01:04.6]} 31. Qe7+ {[%clk 0:00:04.5]} 31... Kf5 {[%clk 0:01:04.7]} 32.
Rg5+ {[%clk 0:00:03.8]} 32... Kf4 {[%clk 0:01:05.1]} 33. Qf6+ {[%clk 0:00:04.1]}
33... Ke3 {[%clk 0:01:04.2]} 34. Rxe5+ {[%clk 0:00:04.4]} 34... Kd2 {[%clk
0:01:04.2]} 35. Rxd5 {[%clk 0:00:04.6]} 35... Qxd5 {[%clk 0:01:01.4]} 36. Qc3+
{[%clk 0:00:04.8]} 36... Kd1 {[%clk 0:00:59.4]} 37. e4# {[%clk 0:00:05.1]} 1-0

[Event "Early-Titled-Tuesday-Blitz-October-03-2023"]
[Site "Chess.com"]
[Date "2023.10.03"]
[Round "1"]
[White "Javylavilla"]
[Black "vladjianu"]
[Result "0-1"]
[WhiteElo "2349"]
[BlackElo "2656"]
[TimeControl "180+1"]
[EndTime "8:06:38 PDT"]
[Termination "vladjianu won by resignation"]

1. e4 {[%clk 0:03:00.9]} 1... c6 {[%clk 0:02:59]} 2. c4 {[%clk 0:03:00]} 2... d5
{[%clk 0:02:57.6]} 3. cxd5 {[%clk 0:03:00.2]} 3... cxd5 {[%clk 0:02:58.5]} 4.
exd5 {[%clk 0:03:00.8]} 4... Nf6 {[%clk 0:02:54.3]} 5. Qa4+ {[%clk 0:02:59.7]}
5... Nbd7 {[%clk 0:02:51.1]} 6. Nc3 {[%clk 0:02:58.3]} 6... g6 {[%clk
0:02:51.2]} 7. Nf3 {[%clk 0:02:57.4]} 7... Bg7 {[%clk 0:02:48]} 8. Bc4 {[%clk
0:02:57.4]} 8... a6 {[%clk 0:02:46.4]} 9. Qb3 {[%clk 0:02:23.7]} 9... O-O {[%clk
0:02:38.5]} 10. O-O {[%clk 0:02:22.7]} 10... b5 {[%clk 0:02:37.1]} 11. Be2
{[%clk 0:02:20.5]} 11... Bb7 {[%clk 0:02:31.7]} 12. d6 {[%clk 0:02:19.8]} 12...
e6 {[%clk 0:02:21.7]} 13. d4 {[%clk 0:02:18]} 13... Nb6 {[%clk 0:02:13.2]} 14.
Bf4 {[%clk 0:02:12.9]} 14... Nfd5 {[%clk 0:01:51.6]} 15. Be5 {[%clk 0:02:08.5]}
15... Nc8 {[%clk 0:01:45.5]} 16. Ne4 {[%clk 0:01:54.3]} 16... Ndb6 {[%clk
0:01:20.2]} 17. Nc5 {[%clk 0:01:47.5]} 17... Bd5 {[%clk 0:01:20.8]} 18. Qe3
{[%clk 0:01:41.5]} 18... Nxd6 {[%clk 0:01:20]} 19. Bxg7 {[%clk 0:01:38.6]} 19...
Kxg7 {[%clk 0:01:20.4]} 20. Qe5+ {[%clk 0:01:38.9]} 20... Kg8 {[%clk 0:01:19.8]}
21. Rac1 {[%clk 0:01:33]} 21... Nbc4 {[%clk 0:01:19.4]} 22. Qf4 {[%clk
0:01:30.6]} 22... Nxb2 {[%clk 0:01:18.1]} 23. Qh6 {[%clk 0:01:30]} 23... Nf5
{[%clk 0:01:15.6]} 24. Qh3 {[%clk 0:01:24.9]} 24... Nc4 {[%clk 0:01:15.5]} 25.
Bxc4 {[%clk 0:01:17]} 25... Bxc4 {[%clk 0:01:15.4]} 26. Rfd1 {[%clk 0:01:16.3]}
26... Bxa2 {[%clk 0:01:14.8]} 27. Ne5 {[%clk 0:01:15.5]} 27... Bd5 {[%clk
0:01:14.1]} 28. Ncd7 {[%clk 0:01:13]} 28... Re8 {[%clk 0:01:13.8]} 29. Ng4
{[%clk 0:01:06.2]} 29... Kg7 {[%clk 0:00:59.3]} 30. Ndf6 {[%clk 0:00:55.7]}
30... Rh8 {[%clk 0:00:59.2]} 31. Nxd5 {[%clk 0:00:24.4]} 31... Qxd5 {[%clk
0:01:00.1]} 32. Rc5 {[%clk 0:00:23.7]} 32... Qd6 {[%clk 0:00:59.6]} 33. Rxf5
{[%clk 0:00:20.2]} 33... exf5 {[%clk 0:00:56.4]} 34. Qh6+ {[%clk 0:00:20.2]}
34... Kg8 {[%clk 0:00:56.9]} 35. Ne5 {[%clk 0:00:19.8]} 35... Rd8 {[%clk
0:00:54.4]} 36. h4 {[%clk 0:00:19.1]} 36... Qf8 {[%clk 0:00:52.7]} 37. Qg5
{[%clk 0:00:18.2]} 37... f6 {[%clk 0:00:52.7]} 38. Qg3 {[%clk 0:00:18.1]} 38...
fxe5 {[%clk 0:00:51.8]} 39. Qxe5 {[%clk 0:00:19]} 39... Qg7 {[%clk 0:00:49]} 40.
Qe6+ {[%clk 0:00:19.1]} 40... Qf7 {[%clk 0:00:49.4]} 41. Qxa6 {[%clk 0:00:19.4]}
41... Kg7 {[%clk 0:00:45.8]} 0-1

[Event "Early-Titled-Tuesday-Blitz-October-03-2023"]
[Site "Chess.com"]
[Date "2023.10.03"]
[Round "1"]
[White "profedechess93"]
[Black "Vision_64"]
[Result "1-0"]
[WhiteElo "2653"]
[BlackElo "2357"]
[TimeControl "180+1"]
[EndTime "8:06:39 PDT"]
[Termination "profedechess93 won by resignation"]

1. e4 {[%clk 0:03:00.9]} 1... e6 {[%clk 0:02:59]} 2. d4 {[%clk 0:03:00.3]} 2...
d5 {[%clk 0:02:58.7]} 3. Nc3 {[%clk 0:03:00.9]} 3... Nf6 {[%clk 0:02:57.3]} 4.
Bg5 {[%clk 0:03:00.5]} 4... h6 {[%clk 0:02:56.8]} 5. Bxf6 {[%clk 0:02:57.2]}
5... Qxf6 {[%clk 0:02:57.7]} 6. a3 {[%clk 0:02:57]} 6... dxe4 {[%clk 0:02:48.5]}
7. Nxe4 {[%clk 0:02:56]} 7... Qg6 {[%clk 0:02:48.2]} 8. Ng3 {[%clk 0:02:50.3]}
8... Nc6 {[%clk 0:02:41.6]} 9. Nf3 {[%clk 0:02:42]} 9... Bd7 {[%clk 0:02:19.1]}
10. Bd3 {[%clk 0:02:34.4]} 10... Qg4 {[%clk 0:02:14.8]} 11. h3 {[%clk
0:01:56.5]} 11... Qf4 {[%clk 0:02:13.6]} 12. Ne4 {[%clk 0:01:56.2]} 12... h5
{[%clk 0:01:47.7]} 13. Qe2 {[%clk 0:01:29.5]} 13... O-O-O {[%clk 0:01:42.1]} 14.
Neg5 {[%clk 0:01:25.3]} 14... Be8 {[%clk 0:01:36.6]} 15. g3 {[%clk 0:01:17.4]}
15... Qf6 {[%clk 0:01:31.8]} 16. c3 {[%clk 0:01:11]} 16... Be7 {[%clk
0:01:20.9]} 17. h4 {[%clk 0:00:58.4]} 17... Nb8 {[%clk 0:01:07.7]} 18. O-O-O
{[%clk 0:00:56.3]} 18... Bc6 {[%clk 0:01:05]} 19. Rhe1 {[%clk 0:00:56.8]} 19...
Qh6 {[%clk 0:01:03.1]} 20. Kb1 {[%clk 0:00:55.3]} 20... Rhf8 {[%clk 0:00:52.3]}
21. Nh7 {[%clk 0:00:44.7]} 21... Rh8 {[%clk 0:00:49.1]} 22. Nhg5 {[%clk
0:00:45.2]} 22... Rhf8 {[%clk 0:00:49.1]} 23. Qe3 {[%clk 0:00:45.3]} 23... Ba4
{[%clk 0:00:40.9]} 24. Rc1 {[%clk 0:00:44]} 24... Bc6 {[%clk 0:00:34.6]} 25. Ne5
{[%clk 0:00:41.8]} 25... Rd6 {[%clk 0:00:21.4]} 26. Nexf7 {[%clk 0:00:35.9]}
26... Rxf7 {[%clk 0:00:18.2]} 27. Nxf7 {[%clk 0:00:35.2]} 27... Qxe3 {[%clk
0:00:18.3]} 28. Nxd6+ {[%clk 0:00:35.1]} 28... Bxd6 {[%clk 0:00:17.2]} 29. Rxe3
{[%clk 0:00:35.8]} 29... Kd7 {[%clk 0:00:17.5]} 30. c4 {[%clk 0:00:32.7]} 30...
b6 {[%clk 0:00:17.3]} 31. Rce1 {[%clk 0:00:32.7]} 1-0

[Event "Early-Titled-Tuesday-Blitz-October-03-2023"]
[Site "Chess.com"]
[Date "2023.10.03"]
[Round "1"]
[White "JosefineHeinemann"]
[Black "dadice10"]
[Result "0-1"]
[WhiteElo "2533"]
[BlackElo "2169"]
[TimeControl "180+1"]
[EndTime "8:06:43 PDT"]
[Termination "dadice10 won by resignation"]

1. Nf3 {[%clk 0:02:59.8]} 1... c5 {[%clk 0:02:56.5]} 2. e4 {[%clk 0:02:50.5]}
2... e6 {[%clk 0:02:55.9]} 3. g3 {[%clk 0:02:47.9]} 3... Nc6 {[%clk 0:02:52.3]}
4. Bg2 {[%clk 0:02:46.7]} 4... Nf6 {[%clk 0:02:51.1]} 5. d3 {[%clk 0:02:42.5]}
5... Be7 {[%clk 0:02:48.8]} 6. O-O {[%clk 0:02:42.4]} 6... O-O {[%clk
0:02:47.3]} 7. Re1 {[%clk 0:02:42.7]} 7... d5 {[%clk 0:02:47]} 8. Nbd2 {[%clk
0:02:42.3]} 8... dxe4 {[%clk 0:02:42.1]} 9. Nxe4 {[%clk 0:02:41.9]} 9... Nxe4
{[%clk 0:02:40]} 10. Rxe4 {[%clk 0:02:41.5]} 10... b6 {[%clk 0:02:37.9]} 11. Bf4
{[%clk 0:02:38.8]} 11... Bb7 {[%clk 0:02:37.5]} 12. Re1 {[%clk 0:02:38.7]} 12...
Bf6 {[%clk 0:02:34.5]} 13. c3 {[%clk 0:02:33.4]} 13... Rc8 {[%clk 0:02:28.2]}
14. Qe2 {[%clk 0:02:23.7]} 14... Qd7 {[%clk 0:02:17.5]} 15. Rad1 {[%clk
0:02:22.7]} 15... Rfd8 {[%clk 0:02:16.8]} 16. h4 {[%clk 0:02:21.2]} 16... h6
{[%clk 0:02:08.9]} 17. Be3 {[%clk 0:01:59.1]} 17... Ne7 {[%clk 0:02:00.1]} 18.
d4 {[%clk 0:01:49.9]} 18... c4 {[%clk 0:01:59.8]} 19. Bf4 {[%clk 0:01:42.1]}
19... b5 {[%clk 0:01:36.7]} 20. Be5 {[%clk 0:01:32.2]} 20... Nd5 {[%clk
0:01:29.2]} 21. Qc2 {[%clk 0:01:22.6]} 21... b4 {[%clk 0:01:20.8]} 22. Bxf6
{[%clk 0:01:19.1]} 22... Nxf6 {[%clk 0:01:19.7]} 23. cxb4 {[%clk 0:01:18.2]}
23... Qb5 {[%clk 0:00:53.4]} 24. a3 {[%clk 0:01:15.8]} 24... a5 {[%clk
0:00:52.7]} 25. bxa5 {[%clk 0:01:14.6]} 25... Qxa5 {[%clk 0:00:53.4]} 26. Re5
{[%clk 0:00:45.1]} 26... Qa7 {[%clk 0:00:50]} 27. Rc1 {[%clk 0:00:20.6]} 27...
Bxf3 {[%clk 0:00:48.4]} 28. Bxf3 {[%clk 0:00:19.7]} 28... Rxd4 {[%clk
0:00:47.7]} 29. Re3 {[%clk 0:00:16.2]} 29... Rcd8 {[%clk 0:00:46.5]} 30. Kg2
{[%clk 0:00:13.6]} 30... Rd2 {[%clk 0:00:44.6]} 31. Qc3 {[%clk 0:00:13.4]} 31...
R8d3 {[%clk 0:00:42.1]} 32. Qb4 {[%clk 0:00:08.4]} 32... Qxe3 {[%clk 0:00:31.5]}
0-1

[Event "Early-Titled-Tuesday-Blitz-October-03-2023"]
[Site "Chess.com"]
[Date "2023.10.03"]
[Round "1"]
[White "TERMINATOR_PC"]
[Black "AsselLesbekova"]
[Result "1-0"]
[WhiteElo "2609"]
[BlackElo "2274"]
[TimeControl "180+1"]
[EndTime "8:06:46 PDT"]
[Termination "TERMINATOR_PC won by resignation"]

1. e4 {[%clk 0:03:00]} 1... e5 {[%clk 0:02:45.8]} 2. Nf3 {[%clk 0:02:59.8]} 2...
Nf6 {[%clk 0:02:46.3]} 3. Nxe5 {[%clk 0:02:58.2]} 3... Nxe4 {[%clk 0:02:46.6]}
4. Qe2 {[%clk 0:02:57.5]} 4... Qe7 {[%clk 0:02:47.1]} 5. Qxe4 {[%clk 0:02:57.3]}
5... d6 {[%clk 0:02:47.7]} 6. d4 {[%clk 0:02:56.2]} 6... dxe5 {[%clk 0:02:48.2]}
7. dxe5 {[%clk 0:02:56.6]} 7... Nc6 {[%clk 0:02:48.6]} 8. Bf4 {[%clk 0:02:54.4]}
8... g5 {[%clk 0:02:48]} 9. Bg3 {[%clk 0:02:52]} 9... f5 {[%clk 0:02:47.6]} 10.
Qa4 {[%clk 0:02:26]} 10... f4 {[%clk 0:02:44.2]} 11. Bb5 {[%clk 0:02:26]} 11...
Bd7 {[%clk 0:02:37.7]} 12. O-O {[%clk 0:02:20.9]} 12... fxg3 {[%clk 0:02:22.7]}
13. e6 {[%clk 0:02:16.9]} 13... Qxe6 {[%clk 0:02:05.7]} 14. Nc3 {[%clk
0:02:15.6]} 14... gxf2+ {[%clk 0:01:56.4]} 15. Rxf2 {[%clk 0:02:12.7]} 15...
O-O-O {[%clk 0:01:56.8]} 16. Re2 {[%clk 0:02:12.7]} 16... Bc5+ {[%clk
0:01:52.7]} 17. Kh1 {[%clk 0:02:12.3]} 17... Qg6 {[%clk 0:01:44.3]} 18. Re4
{[%clk 0:02:00.2]} 18... Rhe8 {[%clk 0:01:26.4]} 19. Rc4 {[%clk 0:01:55.7]}
19... Bb6 {[%clk 0:01:17.8]} 20. Nd5 {[%clk 0:01:55.4]} 20... Qe6 {[%clk
0:01:06.9]} 21. Nxb6+ {[%clk 0:01:51.6]} 21... cxb6 {[%clk 0:01:07.8]} 22. Rg1
{[%clk 0:01:31.7]} 22... Kb8 {[%clk 0:01:06]} 23. Rc3 {[%clk 0:01:26.6]} 23...
Qe4 {[%clk 0:01:00]} 24. Rc4 {[%clk 0:01:21.7]} 24... Qd5 {[%clk 0:00:54.9]} 25.
Rc3 {[%clk 0:01:19.2]} 25... Nd4 {[%clk 0:00:45.6]} 26. Bxd7 {[%clk 0:01:16.8]}
26... Rxd7 {[%clk 0:00:45.2]} 27. Rd3 {[%clk 0:01:17.4]} 27... b5 {[%clk
0:00:35.3]} 28. Qb4 {[%clk 0:01:14.6]} 28... Qc4 {[%clk 0:00:25.7]} 29. Qd2
{[%clk 0:01:11.2]} 29... Rdd8 {[%clk 0:00:11.1]} 30. Qxg5 {[%clk 0:01:06.2]}
30... Ne6 {[%clk 0:00:09.6]} 31. Qe5+ {[%clk 0:01:04.5]} 31... Nc7 {[%clk
0:00:08.4]} 32. Rxd8+ {[%clk 0:01:03.2]} 32... Rxd8 {[%clk 0:00:09.3]} 33. c3
{[%clk 0:01:02.6]} 33... Qd5 {[%clk 0:00:09.6]} 34. Qg7 {[%clk 0:00:59.7]} 34...
a6 {[%clk 0:00:10.1]} 35. Qxh7 {[%clk 0:00:59.6]} 35... Qd2 {[%clk 0:00:10.4]}
36. Qb1 {[%clk 0:00:58.7]} 36... Qd3 {[%clk 0:00:09.6]} 37. Qe1 {[%clk
0:00:56.6]} 37... Ne6 {[%clk 0:00:10.3]} 38. Qxe6 {[%clk 0:00:56.4]} 38... Qd6
{[%clk 0:00:10]} 39. Qxd6+ {[%clk 0:00:56.5]} 39... Rxd6 {[%clk 0:00:10.9]} 40.
g4 {[%clk 0:00:56.7]} 40... Kc7 {[%clk 0:00:09.2]} 41. g5 {[%clk 0:00:56.6]}
41... Kd8 {[%clk 0:00:09]} 42. g6 {[%clk 0:00:57]} 1-0

[Event "Early-Titled-Tuesday-Blitz-October-03-2023"]
[Site "Chess.com"]
[Date "2023.10.03"]
[Round "1"]
[White "Sergey85Rodchenkov"]
[Black "Boxerandchessplayer"]
[Result "0-1"]
[WhiteElo "2526"]
[BlackElo "2164"]
[TimeControl "180+1"]
[EndTime "8:06:46 PDT"]
[Termination "Boxerandchessplayer won by resignation"]

1. e4 {[%clk 0:03:00]} 1... e6 {[%clk 0:03:00.9]} 2. d4 {[%clk 0:02:59.9]} 2...
d5 {[%clk 0:03:01.6]} 3. Nc3 {[%clk 0:03:00.4]} 3... dxe4 {[%clk 0:03:01.2]} 4.
Nxe4 {[%clk 0:03:01.3]} 4... Nd7 {[%clk 0:03:01.6]} 5. Nf3 {[%clk 0:03:00.9]}
5... Ngf6 {[%clk 0:03:02.1]} 6. Bd3 {[%clk 0:03:01.5]} 6... Be7 {[%clk
0:03:02.4]} 7. O-O {[%clk 0:02:58]} 7... O-O {[%clk 0:03:02.3]} 8. Nxf6+ {[%clk
0:02:50.7]} 8... Nxf6 {[%clk 0:03:00.8]} 9. Ne5 {[%clk 0:02:50.4]} 9... c5
{[%clk 0:02:59.6]} 10. c3 {[%clk 0:02:48.4]} 10... cxd4 {[%clk 0:02:59.5]} 11.
cxd4 {[%clk 0:02:49.3]} 11... Qb6 {[%clk 0:02:08.8]} 12. b3 {[%clk 0:02:40.4]}
12... Rd8 {[%clk 0:02:06.8]} 13. Be3 {[%clk 0:02:31.6]} 13... Nd5 {[%clk
0:02:02.2]} 14. Bxh7+ {[%clk 0:00:51.4]} 14... Kxh7 {[%clk 0:01:38.2]} 15. Qh5+
{[%clk 0:00:50.7]} 15... Kg8 {[%clk 0:01:39.1]} 16. Qxf7+ {[%clk 0:00:50.2]}
16... Kh7 {[%clk 0:01:37]} 17. Qh5+ {[%clk 0:00:16.9]} 17... Kg8 {[%clk
0:01:35.3]} 18. Ng6 {[%clk 0:00:17.4]} 18... Bf6 {[%clk 0:01:21.7]} 19. Rae1
{[%clk 0:00:18]} 19... Ne7 {[%clk 0:01:11.1]} 20. Ne5 {[%clk 0:00:06.3]} 20...
Bxe5 {[%clk 0:00:51.5]} 21. dxe5 {[%clk 0:00:07.2]} 21... Qc6 {[%clk 0:00:51.5]}
22. Bg5 {[%clk 0:00:07.5]} 22... Qe8 {[%clk 0:00:48.5]} 23. Qh4 {[%clk
0:00:04.5]} 23... Rd7 {[%clk 0:00:48.7]} 24. Re4 {[%clk 0:00:03.4]} 24... Nf5
{[%clk 0:00:48.5]} 25. Qg4 {[%clk 0:00:02.6]} 25... b6 {[%clk 0:00:43.4]} 26.
Rf4 {[%clk 0:00:01.9]} 26... Rd5 {[%clk 0:00:39]} 27. Qh3 {[%clk 0:00:02]} 27...
Qg6 {[%clk 0:00:36.9]} 28. g4 {[%clk 0:00:01.5]} 28... Qxg5 {[%clk 0:00:36.5]}
29. Rxf5 {[%clk 0:00:02]} 29... exf5 {[%clk 0:00:36.3]} 30. f3 {[%clk
0:00:02.5]} 30... fxg4 {[%clk 0:00:34.6]} 31. Kh1 {[%clk 0:00:03.4]} 0-1